Cogmind - Beta 10 @@@ ROGUE MODE // 2020.09.19 @ 05:21:59 Player: DragoX Result: Self-destructed Performance ------------- Evolutions (1) 500 Regions Visited (2) 400 Robots Destroyed (21) 105 Value Destroyed (579) 579 Prototype IDs (0) 0 Alien Tech Used (0) 0 Bonus (0) 0 TOTAL SCORE: 1584 Bonus ------- None Cogmind --------- Core Integrity 17/400 Matter 300/300 Energy 100/100 System Corruption 0% Temperature Cool (0) Movement Core (200) Ox3 Location -9/Materials Parts ------- > --- POWER (1) -------- (None) > --- PROPULSION (2) --- (None) > --- UTILITY (4) ------ Medium Storage Unit Armor Integrity Analyzer > --- WEAPON (2) ------- Maul > --- INVENTORY (8) ---- Ion Engine Light Treads Light Treads Shotgun Peak State ------------ > --- POWER ------------ Ion Engine > --- PROPULSION ------- Aluminum Leg Aluminum Leg > --- UTILITY ---------- Medium Storage Unit Armor Integrity Analyzer Particle Charger > --- WEAPON ----------- Shotgun Maul > --- INVENTORY -------- Ion Engine Light Treads Light Treads Beam Rifle [Rating: 13] Favorites ----------- Power Ion Engine Engine Ion Engine Propulsion Aluminum Leg Treads Light Treads Leg Aluminum Leg Flight Unit Flight Unit Utility Armor Integrity Analyzer Device Particle Charger Storage Medium Storage Unit Processor Armor Integrity Analyzer Weapon EM Pulse Gun Energy Gun EM Pulse Gun Ballistic Gun Shotgun Launcher Grenade Launcher Impact Weapon Maul Build | -11 -10 -9 ------- Run | Scr Mat Mat Slots Evolved 2 | . . 2 Power . | . . . Propulsion . | . . . Utility 2 | . . 2 Weapon . | . . . Parts Attached 26 | 6 7 13 Power 3 | . 2 1 Engine 3 | . 2 1 Core . | . . . Reactor . | . . . Propulsion 7 | 3 2 2 Treads 1 | 1 . . Leg 4 | 2 . 2 Wheel . | . . . Hover . | . . . Flight 2 | . 2 . Utility 4 | 1 . 3 Device 1 | . . 1 Storage 2 | 1 . 1 Processor 1 | . . 1 Hackware . | . . . Protection . | . . . Artifact . | . . . Weapon 12 | 2 3 7 Energy Gun 7 | 1 2 4 Energy Cannon . | . . . Ballistic Gun 3 | 1 . 2 Ballistic Cannon . | . . . Launcher 1 | . 1 . Special Weapon . | . . . Impact Weapon 1 | . . 1 Slashing Weapon . | . . . Piercing Weapon . | . . . Special Melee Weapon . | . . . Unidentified Prototypes . | . . . Parts Lost 10 | . . 10 Power 2 | . . 2 Propulsion 4 | . . 4 Utility 1 | . . 1 Weapon 3 | . . 3 Highest Loss Streak 4 | . . 4 Average Slot Usage (%) 68 | . 72 66 Engine 9 | . 8 9 Leg 12 | . 14 11 Flight 9 | . 12 7 Device 3 | . . 4 Storage 5 | . 8 4 Processor 7 | . . 10 Energy Gun 8 | . 13 6 Ballistic Gun 4 | . 8 3 Launcher 1 | . 5 . Impact Weapon 5 | . . 7 Naked Turns . | . . . Heaviest Build 22 | 8 13 22 Greatest Support 20 | 20 20 20 Greatest Overweight (x) 3 | . 2 3 Average Overweight (x) . | . . . Largest Inventory Capacity 8 | 6 6 8 Average Capacity 5 | 5 5 5 Most Carried 6 | 5 6 4 Average Carried 4 | 3 4 3 Final Capacity 8 | 6 4 8 Final Carried 5 | 5 4 4 Class Distribution -------------------- 91% | Mutant 8% | Scavenger-Mutant Dominant Class ---------------- Mutant | -10/Materials Mutant | -9/Materials Resources | -11 -10 -9 ----------- Run | Scr Mat Mat Matter Collected 551 | 246 64 241 Remotely . | . . . Salvage Created 765 | . 147 618 Parts 38 | . 10 28 Haulers Intercepted 1 | . . 1 Recyclers Shooed 1 | . . 1 Parts Field Recycled . | . . . Retrieved Matter . | . . . Parts Self-Destructed . | . . . Prevented . | . . . Kills | -11 -10 -9 ------- Run | Scr Mat Mat Combat Hostiles Destroyed 18 | . 5 13 Melee 3 | . . 3 Guns 14 | . 5 9 AOE 1 | . . 1 Classes Destroyed 5 | . 2 3 Worker 2 | . . 2 Hauler 1 | . . 1 Swarmer 4 | . 3 1 Grunt 11 | . 2 9 Sentry 3 | . . 3 Best Kill Streak 5 | . 5 3 Combat Bots Only 5 | . 5 3 Max Kills in Single Turn 1 | . 1 1 Gunslinging . | . . . Exploded 1 | . . 1 Melee 1 | . . 1 Uniques/NPCs Destroyed . | . . . Combat | -11 -10 -9 -------- Run | Scr Mat Mat Damage Taken 1270 | . 148 1122 Core 399 | . 16 383 Absorbed by Shields . | . . . Core Remaining (%) 96 | 100 93 . Volleys Fired 59 | . 10 49 Largest 2 | . 2 2 Hottest 70 | . 60 70 Shots Fired 70 | . 20 50 Gun 69 | . 20 49 Cannon . | . . . Launcher 1 | . . 1 Special . | . . . Kinetic 29 | . 10 19 Thermal 27 | . . 27 Explosive 1 | . . 1 Electromagnetic 13 | . 10 3 Robot Hit Streak 10 | . 9 10 Robot Miss Streak 3 | . 1 3 Penetration Max . | . . . Secondary Targets . | . . . Shots Hit Robots 72 | . 12 60 Core Hits 35 | . 6 29 Critical Hits . | . . . Critical Kills . | . . . Critical Parts Destroyed . | . . . Melee Attacks 30 | . . 30 Impact 30 | . . 30 Slashing . | . . . Piercing . | . . . Sneak Attacks 4 | . . 4 Combat Hostiles . | . . . Follow-up Attacks . | . . . Damage Inflicted 1473 | . 141 1332 Guns 707 | . 141 566 Cannons . | . . . Explosions 25 | . . 25 Melee 741 | . . 741 Ramming . | . . . Kinetic 298 | . 43 255 Thermal 304 | . . 304 Explosive . | . . . Electromagnetic 130 | . 98 32 Impact 741 | . . 741 Slashing . | . . . Piercing . | . . . Highest Corruption 1 | . 1 . Average Corruption 1 | . 1 . Corruption Purged . | . . . Overload Shots . | . . . Overflow Damage 117 | . . 117 Projectiles . | . . . Explosions . | . . . Melee 117 | . . 117 Knockbacks 2 | . . 2 Impact 2 | . . 2 Kinetic . | . . . Secondary . | . . . Self-Inflicted Damage 37 | . . 37 Shots 1 | . . 1 Rammed . | . . . Targets Rammed . | . . . Kicked . | . . . Crushed . | . . . Highest Temperature 182 | . 1 182 Average Temperature 62 | . 1 64 Received Heat Transfer 372 | . 18 354 Siege Activations . | . . . Robots Corrupted . | . . . Combat Hostiles . | . . . Parts Fried 2 | . . 2 Impact Corruptions 6 | . . 6 Robots Melted . | . . . Combat Hostiles . | . . . Parts Melted 3 | . . 3 Heat Transferred 703 | . . 703 Parts Sabotaged . | . . . Parts Stolen . | . . . Parts Stripped . | . . . Power Chain Reactions 1 | . . 1 Missiles Intercepted . | . . . Alert | -11 -10 -9 ------- Run | Scr Mat Mat Peak Influence 344 | . 126 344 Initial 52 | . . 52 Average 170 | . 94 216 Maximum Alert Level 1 | . . 1 Low Security (%) 67 | 100 100 52 Level 1 32 | . . 47 Level 2 . | . . . Level 3 . | . . . Level 4 . | . . . Level 5 . | . . . High Security . | . . . Max Security . | . . . Squads Dispatched 3 | . 1 2 Investigation 2 | . 1 1 Extermination . | . . . Reinforcement 1 | . . 1 Assault . | . . . Garrison . | . . . Intercept . | . . . Construction Impeded . | . . . Haulers Reinforced . | . . . Stealth | -11 -10 -9 --------- Run | Scr Mat Mat Distress Signals 2 | . 1 1 Communications Jammed . | . . . Distress Signals . | . . . Times Spotted 34 | . 9 25 Peak Tracking Total 9 | . 4 9 Tactical Retreats 2 | . . 2 Traps | -11 -10 -9 ------- Run | Scr Mat Mat Traps Triggered 1 | . 1 . Indirectly . | . . . Trap Hack Attempts . | . . . Triggered . | . . . Disarmed . | . . . Reprogrammed . | . . . Reused . | . . . Traps Extracted . | . . . Installed . | . . . Triggered . | . . . Machines | -11 -10 -9 ---------- Run | Scr Mat Mat Machines Disabled . | . . . Max in Single Turn . | . . . Machines Sabotaged . | . . . Garrisons Compromised . | . . . Overloaded Fab Kills . | . . . Fab Network Shutdowns . | . . . Hacking | -11 -10 -9 --------- Run | Scr Mat Mat Machines Accessed 2 | . 1 1 Terminals 2 | . 1 1 Fabricators . | . . . Repair Stations . | . . . Recycling Units . | . . . Scanalyzers . | . . . Garrison Access . | . . . Total Hacks 6 | . 3 3 Successful 3 | . 2 1 Failed 3 | . 1 2 Catastrophic . | . . . Database Lockouts . | . . . Manual 6 | . 3 3 Terminals 6 | . 3 3 Fabricators . | . . . Repair Stations . | . . . Recycling Units . | . . . Scanalyzers . | . . . Garrison Access . | . . . Terminal Hacks . | . . . Fabricator Hacks . | . . . Repair Station Hacks . | . . . Recycling Unit Hacks . | . . . Scanalyzer . | . . . Garrison Access Hacks . | . . . Unauthorized Hacks 3 | . 2 1 Terminals 3 | . 2 1 Botnet 2 | . 1 1 Operators 1 | . 1 . Fabricators . | . . . Repair Stations . | . . . Recycling Units . | . . . Scanalyzers . | . . . Garrison Access . | . . . Data Cores Recovered . | . . . Used . | . . . Hacking Detections 2 | . 1 1 Full Trace Events 2 | . 1 1 Feedback Events . | . . . Feedback Blocked . | . . . Robot Schematics Acquired . | . . . Robots Built . | . . . Matter . | . . . Time . | . . . Total Robot Build Rating . | . . . Part Schematics Acquired . | . . . Parts Built . | . . . Matter . | . . . Time . | . . . Total Part Build Rating . | . . . Parts Repaired . | . . . Time . | . . . Parts Recycled . | . . . Recycled Matter . | . . . Retrieved Matter . | . . . Retrieved Components . | . . . Parts Scanalyzed . | . . . Part Schematics Acquired . | . . . Parts Damaged . | . . . Bothacking | -11 -10 -9 ------------ Run | Scr Mat Mat Used RIF Installer . | . . . Robots Hacked . | . . . Non-combat . | . . . Combat . | . . . Robot Hacks Applied . | . . . Relay Couplers Released . | . . . Robots Rewired . | . . . Allies Hacked . | . . . Hacks Repelled . | . . . Allies | -11 -10 -9 -------- Run | Scr Mat Mat Total Allies . | . . . Largest Group . | . . . Highest-Rated Group . | . . . Highest-Rated Ally . | . . . Total Orders . | . . . Ally Attacks . | . . . Total Damage . | . . . Kills . | . . . Allies Corrupted . | . . . Allies Melted . | . . . Intel | -11 -10 -9 ------- Run | Scr Mat Mat Robot Analysis Total . | . . . Derelict Logs Recovered . | . . . Drone Launches . | . . . Drone Recoveries . | . . . Exploration | -11 -10 -9 ------------- Run | Scr Mat Mat Turns Passed 802 | 61 191 550 Spaces Moved 480 | 43 168 269 Core 12 | 9 . 3 Treads . | . . . Legs 229 | 34 52 143 Wheels . | . . . Hover . | . . . Flight 239 | . 116 123 Fastest Speed 37 | 50 37 37 Average Speed 85 | 105 64 96 Slowest Speed 200 | 120 200 200 Overloaded Moves . | . . . Propulsion Burnouts . | . . . Robots Hopped 1 | . 1 . Cave-ins Triggered . | . . . Exploration Rate (%) 23 | 4 33 33 Regions Visited 2 Branch Regions . Pre-discovered Areas . | . . . Known Exits Taken . | . . . Unknown Exits Taken 2 | 1 1 . Scrap Searched . | . . . Spaces Dug . | . . . Terrain Destroyed 9 | . . 9 Melee . | . . . Projectile . | . . . AOE 9 | . . 9 Terrain Rammed . | . . . Walls Destroyed . | . . . Machines Disabled . | . . . Actions | -11 -10 -9 --------- Run | Scr Mat Mat Total 736 | 58 232 446 Wait 115 | . 37 78 Move 476 | 42 165 269 Hop 1 | . 1 . Pick Up 18 | 9 5 4 Fast Attach 9 | 1 1 7 Attach 14 | 5 6 3 Detach 1 | 1 . . Swap 3 | . . 3 Drop 10 | . 7 3 Fire 59 | . 10 49 Melee 30 | . . 30 Ram . | . . . Kick . | . . . Crush . | . . . Escape Stasis . | . . . Rewire . | . . . Trap . | . . . Miscellaneous . | . . . Route ------- -11/Scrapyard -10/Materials -9/Materials (discovered 1 exit: [*Mat]) History --------- Turn | Location | Event 21 | -11/Scrapyard | Discovered new exit (range 16) 62 | -11/Scrapyard | Entered Materials 186 | -10/Materials | Discovered new exit (range 16) 253 | -10/Materials | Entered another Materials area 253 | -9/Materials | Evolved 2 slots: Utility x2 317 | -9/Materials | Build established: Mutant 527 | -9/Materials | Discovered new exit (range 10) 756 | -9/Materials | Core integrity fell below 50% 791 | -9/Materials | Core integrity fell below 20% 803 | -9/Materials | Self-destructed Last Messages --------------- 00776_ K-01 Serf cleans the Electrolysis Chamber. 00782_ Aluminum Leg destroyed. 00784_ K-01 Serf cleans the Electrolysis Chamber. 00786_ Destroyed Flight Unit. 00786_ S-10 Pest system corrupted by crushing effect. 00787_ K-01 Serf cleans the Electrolysis Chamber. 00789_ S-10 Pest destroyed. 00791_ K-01 Serf collects debris. 00792_ Sneak attack on K-01 Serf. 00792_ Destroyed Wheel. 00792_ Destroyed Med. Matter Pod. 00792_ K-01 Serf system corrupted by crushing effect. 00792_ K-01 Serf knocked back. 00793_ K-01 Serf system terminally corrupted. 00793_ Lgt. Ion Engine fried. 00797_ R-06 Scavenger collects Lgt. Assault Rifle. 00799_ K-01 Serf collects debris. 00800_ G-34 Mercenary destroyed. 00801_ R-06 Scavenger collects Ion Engine. 00802_ K-01 Serf cleans the Electrolysis Chamber. Map ----- +----------------------------------------------------+ | ?????????????????????????????????????????????????? | | ?????????????????????????????????????????????????? | | ?????????????????????????????????????????????????? | | ?????????????????????????????????????????????????? | | ?????????????????????????????????????????????????? | | ?????????????????????????????????????????????????? | | ?????????????????????????????????????????????????? | | ?????????????????????????????????????????????????? | | ?????????????????????????????????????????????????? | | ?????????????????????????????????????????????????? | | ?????????????????????????????????????????????????? | | ?????????????????????????????????????????????????? | | ?????????????????????????????????????????????????? | | ?????????????????????????????????????????????????? | | ?????????????????????????????????????????????????? | | ?????????????????????????????????????????????????? | | ?????????????????????????????????????????????????? | | ?????????????????????????????????????????????????? | | ??????????????? ??????????????######????????????? | | ???????????????? ! ??????###### ?????????????? | | ???????????????###+####### ???????????????? | | ???????????????# w # ????????????????? | | ??????????? ?? # ??????????????????? | | ??????????? ?# =# #???????????????????? | | ??????????# ?# """ """w# #???????????????????? | | ??????????# ## """ """%@r #???????????????????? | | ??????????# ## """ """r#sss#???????????????????? | | ??????????# ## k# #???????????????????? | | ??????????# ## # #???????????????????? | | ??????????# ########+### #???????????????????? | | ??????????# u/???????????????????? | | ??????????# # ??????????????????? | | ??????????# % ###?????????????????? | | ??????????# ###/############???????????????????? | | ??????????# # #????????????????????????? | | ??????????# # #????????????????????????? | | ??????????# # #????????????????????????? | | # ???????# # #????????????????????????? | | ? ??????# + !%* #????????????????????????? | | ? "??????# # #????????????????????????? | | ? S"??????# # #????????????????????????? | | ??""??????# # #????????????????????????? | | #? ??????# ##+########????????????????????????? | | ###+####### #???????????????????????????????? | | #???????????????????????????????? | | #???????????????????????????????? | | % % #????????????????????? ????????? | | #### # ## #?????????????? ????" ????????? | | #??# # ## #?????????????? "???" "???? ? | | ???# # !!!!!## #?????????????# "??"" "???" # | +----------------------------------------------------+ Best States ------------- Heat Dissipation 28 Energy Generation 10 Energy Capacity 250 Matter Stores 300 Matter Capacity 300 Sight Range 16 Terrain Scan Density 10 Evasion (%) 62 Armor Integrity Analysis 33 Particle Charging 15 Item Schematics ----------------- None Robot Schematics ------------------ None Fabricated ------------ Nothing Alien Tech Used ----------------- None Achievements -------------- None Challenges ------------ None Game ------ Seed EtherialCorruptionCompactor Manual? 0 Play Time 00:15:34 Cumulative 15.0 hours Start 2020.09.19 @ 05:07:40 End 2020.09.19 @ 05:21:59 Sessions 1 Manual Loads 0 Difficulty Rogue Special Mode None Game No. 15 Rogue 15 Adventurer 0 Explorer 0 Win Type - Total 0 Types 0/0/0/0/0/0/0/0/0 Lore% 16 Gallery% 22 Achievement% 17 Wizard Run 0 Options --------- ASCII 0 Keyboard 0 Movement Mouse Keybinds 0 Fullscreen 1 Font 18/X11Bold Map View 76x50 Tactical HUD 1 Map Filters NONE Filters NONE Steam 0 RUN: d8bf3c6e-3b53-409a-986d-a49cfa005bb7